Cogmind - Beta 10.2 @@@ ROGUE MODE // 2021.03.20 @ 12:25:12 Player: Amy! Result: Destroyed by G-34 Mercenary with Small Laser Performance ------------- Evolutions (1) 500 Regions Visited (4) 800 Robots Destroyed (10) 50 Value Destroyed (273) 273 Prototype IDs (3) 60 Alien Tech Used (0) 0 Bonus (343) 343 TOTAL SCORE: 2026 Bonus ------- Follower Combat Kills 143 Entered Garrisons 200 Cogmind --------- Core Integrity 0/400 Matter 300/300 Energy 98/100 System Corruption 0% Temperature Cool (6) Movement Core (50) Location -9/Garrison Parts ------- > --- POWER (1) -------- (None) > --- PROPULSION (3) --- (None) > --- UTILITY (3) ------ Signal Interpreter ECM Suite > --- WEAPON (2) ------- (None) > --- INVENTORY (4) ---- Ion Engine Heat Sink EM Pulse Gun Improved Heavy Laser Peak State ------------ > --- POWER ------------ Light Ion Engine > --- PROPULSION ------- Flight Unit Flight Unit Flight Unit > --- UTILITY ---------- Heat Sink Signal Interpreter ECM Suite > --- WEAPON ----------- Beam Rifle Improved Heavy Laser > --- INVENTORY -------- Light Ion Engine EM Pulse Gun EM Pulse Gun [Rating: 15] Favorites ----------- Power Light Ion Engine Engine Light Ion Engine Propulsion Flight Unit Treads Light Treads Flight Unit Flight Unit Utility Heat Sink Device Heat Sink Storage Small Storage Unit Processor Signal Interpreter Weapon EM Pulse Gun Energy Gun EM Pulse Gun Special Melee Weapon Datajack Build | -11 -10 -9 -9 -9 ------- Run | Scr Mat Mat Sto Gar Slots Evolved 2 | . . 2 . . Power . | . . . . . Propulsion 1 | . . 1 . . Utility 1 | . . 1 . . Weapon . | . . . . . Parts Attached 28 | 6 9 2 7 4 Power 3 | 1 1 . 1 . Engine 3 | 1 1 . 1 . Core . | . . . . . Reactor . | . . . . . Propulsion 6 | 2 3 1 . . Treads 2 | 2 . . . . Leg . | . . . . . Wheel . | . . . . . Hover . | . . . . . Flight 4 | . 3 1 . . Utility 4 | 1 2 1 . . Device 2 | . 2 . . . Storage 1 | 1 . . . . Processor 1 | . . 1 . . Hackware . | . . . . . Protection . | . . . . . Artifact . | . . . . . Weapon 15 | 2 3 . 6 4 Energy Gun 14 | 2 2 . 6 4 Energy Cannon . | . . . . . Ballistic Gun . | . . . . . Ballistic Cannon . | . . . . . Launcher . | . . . . . Special Weapon . | . . . . . Impact Weapon . | . . . . . Slashing Weapon . | . . . . . Piercing Weapon . | . . . . . Special Melee Weapon 1 | . 1 . . . Unidentified Prototypes 1 | . . . 1 . Parts Lost 9 | . 1 . 3 5 Power 2 | . . . 1 1 Propulsion 4 | . 1 . 1 2 Utility . | . . . . . Weapon 3 | . . . 1 2 Highest Loss Streak 3 | . 1 . 1 3 Average Slot Usage (%) 87 | . 98 100 91 53 Engine 11 | . 14 11 11 9 Treads 7 | . 19 . . . Flight 18 | . 8 33 30 13 Device 18 | . 16 22 22 14 Storage 3 | . 9 . . . Processor 6 | . . 11 11 11 Energy Gun 16 | . 23 11 15 5 Special Melee Weapon 3 | . 4 11 1 . Naked Turns . | . . . . . Heaviest Build 14 | 13 14 8 13 13 Greatest Support 40 | 40 40 12 8 8 Greatest Overweight (x) 2 | 2 2 . 1 2 Average Overweight (x) . | . . . . . Largest Inventory Capacity 6 | 6 6 4 4 4 Average Capacity 4 | 5 5 4 4 4 Most Carried 6 | 2 6 3 4 4 Average Carried 3 | 1 4 2 3 3 Final Capacity 6 | 6 4 4 4 4 Final Carried 4 | 2 4 3 3 4 Class Distribution -------------------- 82% | Mutant 17% | Commander-Mutant Dominant Class ---------------- Mutant | -10/Materials Mutant | -9/Materials Commander-Mutant | -9/Storage Mutant | -9/Garrison Resources | -11 -10 -9 -9 -9 ----------- Run | Scr Mat Mat Sto Gar Matter Collected 450 | 260 64 . 101 25 Remotely . | . . . . . Salvage Created 302 | . 141 . 35 126 Parts 17 | . 12 . 1 4 Haulers Intercepted . | . . . . . Recyclers Shooed . | . . . . . Parts Field Recycled . | . . . . . Retrieved Matter . | . . . . . Parts Self-Destructed . | . . . . . Prevented . | . . . . . Kills | -11 -10 -9 -9 -9 ------- Run | Scr Mat Mat Sto Gar Combat Hostiles Destroyed 9 | . 5 . 1 3 Melee 2 | . 2 . . . Guns 6 | . 3 . 1 2 Classes Destroyed 3 | . 3 . . . Watcher 1 | . 1 . . . Swarmer 3 | . 3 . . . Grunt 6 | . 2 . 1 3 Best Kill Streak 4 | . 4 . 1 2 Combat Bots Only 4 | . 4 . 1 2 Max Kills in Single Turn 1 | . 1 . 1 1 Gunslinging . | . . . . . Exploded . | . . . . . Melee 1 | . 1 . . . Uniques/NPCs Destroyed . | . . . . . Combat | -11 -10 -9 -9 -9 -------- Run | Scr Mat Mat Sto Gar Damage Taken 999 | . 275 28 185 511 Core 470 | . 64 14 12 380 Absorbed by Shields 30 | . . . . 30 Core Remaining (%) 87 | 100 74 . . . Volleys Fired 95 | . 15 . 68 12 Largest 2 | . 2 . 2 2 Hottest 121 | . 90 . 121 121 Shots Fired 160 | . 30 . 108 22 Gun 160 | . 30 . 108 22 Cannon . | . . . . . Launcher . | . . . . . Special . | . . . . . Kinetic . | . . . . . Thermal 115 | . 1 . 95 19 Explosive . | . . . . . Electromagnetic 45 | . 29 . 13 3 Robot Hit Streak 13 | . 6 . 7 13 Robot Miss Streak 5 | . 5 . . 1 Penetration Max . | . . . . . Secondary Targets 1 | . . . . 1 Max Gunslinging Chain 1 | . . . . 1 Shots Hit Robots 34 | . 14 . 1 19 Core Hits 11 | . 6 . 1 4 Critical Hits . | . . . . . Critical Kills . | . . . . . Critical Parts Destroyed . | . . . . . Melee Attacks . | . . . . . Impact . | . . . . . Slashing . | . . . . . Piercing . | . . . . . Sneak Attacks . | . . . . . Combat Hostiles . | . . . . . Follow-up Attacks . | . . . . . Damage Inflicted 526 | . 151 . 15 360 Guns 513 | . 138 . 15 360 Cannons . | . . . . . Explosions . | . . . . . Melee . | . . . . . Ramming 13 | . 13 . . . Kinetic . | . . . . . Thermal 345 | . . . 15 330 Explosive . | . . . . . Electromagnetic 168 | . 138 . . 30 Impact . | . . . . . Slashing . | . . . . . Piercing . | . . . . . Highest Corruption . | . . . . . Average Corruption . | . . . . . Corruption Purged . | . . . . . Overload Shots . | . . . . . Overflow Damage . | . . . . . Projectiles . | . . . . . Explosions . | . . . . . Melee . | . . . . . Knockbacks . | . . . . . Impact . | . . . . . Kinetic . | . . . . . Secondary . | . . . . . Self-Inflicted Damage . | . . . . . Shots . | . . . . . Rammed 3 | . 3 . . . Targets Rammed 5 | . 5 . . . Kicked . | . . . . . Crushed 2 | . 2 . . . Highest Temperature 270 | . 2 . 270 178 Average Temperature 78 | . 2 . 84 59 Received Heat Transfer 376 | . 63 18 75 220 Siege Activations . | . . . . . Robots Corrupted . | . . . . . Combat Hostiles . | . . . . . Parts Fried . | . . . . . Impact Corruptions . | . . . . . Robots Melted 1 | . . . . 1 Combat Hostiles 1 | . . . . 1 Parts Melted 1 | . . . . 1 Heat Transferred 629 | . . . 37 592 Parts Sabotaged . | . . . . . Parts Stolen . | . . . . . Parts Stripped . | . . . . . Power Chain Reactions . | . . . . . Missiles Intercepted . | . . . . . Alert | -11 -10 -9 -9 -9 ------- Run | Scr Mat Mat Sto Gar Peak Influence 166 | . 166 143 160 164 Initial 89 | . . 8 59 89 Average 75 | . 49 54 89 132 Maximum Alert Level . | . . . . . Low Security (%) 100 | 100 100 100 100 100 Level 1 . | . . . . . Level 2 . | . . . . . Level 3 . | . . . . . Level 4 . | . . . . . Level 5 . | . . . . . High Security . | . . . . . Max Security . | . . . . . Squads Dispatched 2 | . . 1 1 . Investigation . | . . . . . Extermination . | . . . . . Reinforcement 2 | . . 1 1 . Assault . | . . . . . Garrison . | . . . . . Intercept . | . . . . . Construction Impeded . | . . . . . Haulers Reinforced . | . . . . . Stealth | -11 -10 -9 -9 -9 --------- Run | Scr Mat Mat Sto Gar Distress Signals 6 | . 2 3 1 . Communications Jammed . | . . . . . Distress Signals . | . . . . . Times Spotted 52 | . 17 5 16 14 Peak Tracking Total 9 | . 8 5 6 9 Tactical Retreats 7 | . 2 2 1 2 Traps | -11 -10 -9 -9 -9 ------- Run | Scr Mat Mat Sto Gar Traps Triggered 4 | . 1 . . 3 Indirectly . | . . . . . Trap Hack Attempts . | . . . . . Triggered . | . . . . . Disarmed . | . . . . . Reprogrammed . | . . . . . Reused . | . . . . . Traps Extracted . | . . . . . Installed . | . . . . . Triggered . | . . . . . Machines | -11 -10 -9 -9 -9 ---------- Run | Scr Mat Mat Sto Gar Machines Disabled 1 | . . . 1 . Max in Single Turn 1 | . . . 1 . Machines Sabotaged . | . . . . . Garrisons Compromised . | . . . . . Overloaded Fab Kills . | . . . . . Fab Network Shutdowns . | . . . . . Hacking | -11 -10 -9 -9 -9 --------- Run | Scr Mat Mat Sto Gar Machines Accessed 14 | . 7 1 6 . Terminals 13 | . 7 1 5 . Fabricators . | . . . . . Repair Stations . | . . . . . Recycling Units . | . . . . . Scanalyzers . | . . . . . Garrison Access 1 | . . . 1 . Total Hacks 42 | . 23 2 17 . Successful 28 | . 16 1 11 . Failed 14 | . 7 1 6 . Catastrophic 1 | . 1 . . . Database Lockouts . | . . . . . Manual 28 | . 17 2 9 . Terminals 41 | . 23 2 16 . Fabricators . | . . . . . Repair Stations . | . . . . . Recycling Units . | . . . . . Scanalyzers . | . . . . . Garrison Access 1 | . . . 1 . Terminal Hacks 9 | . 4 . 5 . Robot Analysis 1 | . . . 1 . Prototype ID Bank 1 | . . . 1 . Open Door 2 | . . . 2 . Emergency Access Points 1 | . 1 . . . Alert Level 1 | . 1 . . . Unreport Threat 2 | . 1 . 1 . Locate Traps 1 | . 1 . . . Fabricator Hacks . | . . . . . Repair Station Hacks . | . . . . . Recycling Unit Hacks . | . . . . . Scanalyzer . | . . . . . Garrison Access Hacks 1 | . . . 1 . Unlock Access 1 | . . . 1 . Unauthorized Hacks 18 | . 12 1 5 . Terminals 18 | . 12 1 5 . Assimilate 7 | . 5 . 2 . Botnet 11 | . 7 1 3 . Fabricators . | . . . . . Repair Stations . | . . . . . Recycling Units . | . . . . . Scanalyzers . | . . . . . Garrison Access . | . . . . . Data Cores Recovered . | . . . . . Used . | . . . . . Hacking Detections 13 | . 7 1 5 . Full Trace Events . | . . . . . Feedback Events . | . . . . . Feedback Blocked . | . . . . . Robot Schematics Acquired . | . . . . . Robots Built . | . . . . . Matter . | . . . . . Time . | . . . . . Total Robot Build Rating . | . . . . . Part Schematics Acquired . | . . . . . Parts Built . | . . . . . Matter . | . . . . . Time . | . . . . . Total Part Build Rating . | . . . . . Parts Repaired . | . . . . . Time . | . . . . . Parts Recycled . | . . . . . Recycled Matter . | . . . . . Retrieved Matter . | . . . . . Retrieved Components . | . . . . . Parts Scanalyzed . | . . . . . Part Schematics Acquired . | . . . . . Parts Damaged . | . . . . . Bothacking | -11 -10 -9 -9 -9 ------------ Run | Scr Mat Mat Sto Gar Used RIF Installer . | . . . . . Robots Hacked . | . . . . . Non-combat . | . . . . . Combat . | . . . . . Robot Hacks Applied . | . . . . . Relay Couplers Released . | . . . . . Robots Rewired . | . . . . . Allies Hacked . | . . . . . Hacks Repelled . | . . . . . Allies | -11 -10 -9 -9 -9 -------- Run | Scr Mat Mat Sto Gar Total Allies 11 | . 1 . 10 . Largest Group 10 | . 1 . 10 . Highest-Rated Group 88 | . 10 . 88 . Highest-Rated Ally 16 | . 10 . 16 . Total Orders . | . . . . . Ally Attacks 74 | . . . 74 . Total Damage 683 | . . . 683 . Kills 10 | . . . 10 . Allies Corrupted . | . . . . . Allies Melted . | . . . . . Intel | -11 -10 -9 -9 -9 ------- Run | Scr Mat Mat Sto Gar Robot Analysis Total 1 | . . . 1 . Derelict Logs Recovered . | . . . . . Drone Launches . | . . . . . Drone Recoveries . | . . . . . Exploration | -11 -10 -9 -9 -9 ------------- Run | Scr Mat Mat Sto Gar Turns Passed 1883 | 86 713 170 547 367 Spaces Moved 1973 | 49 767 219 596 342 Core 90 | 5 . . . 85 Treads 304 | 44 260 . . . Legs . | . . . . . Wheels . | . . . . . Hover . | . . . . . Flight 1579 | . 507 219 596 257 Fastest Speed 34 | 50 37 34 37 37 Average Speed 57 | 154 78 36 37 42 Slowest Speed 200 | 160 200 37 117 200 Overloaded Moves . | . . . . . Propulsion Burnouts . | . . . . . Robots Hopped 22 | . 6 5 10 1 Cave-ins Triggered . | . . . . . Exploration Rate (%) 45 | 4 91 31 46 53 Regions Visited 4 Branch Regions 1 Pre-discovered Areas . | . . . . . Known Exits Taken 2 | . . 1 1 . Unknown Exits Taken 2 | 1 1 . . . Scrap Searched . | . . . . . Spaces Dug . | . . . . . Terrain Destroyed 1 | . . . 1 . Melee . | . . . . . Projectile 1 | . . . 1 . AOE . | . . . . . Terrain Rammed . | . . . . . Walls Destroyed . | . . . . . Machines Disabled . | . . . . . Actions | -11 -10 -9 -9 -9 --------- Run | Scr Mat Mat Sto Gar Total 2540 | 56 839 303 802 540 Wait 386 | . 29 87 138 132 Move 1925 | 48 755 208 576 338 Hop 21 | . 5 5 10 1 Pick Up 14 | 2 10 1 . 1 Fast Attach 10 | 6 3 . 1 . Attach 14 | . 5 2 3 4 Detach 8 | . 1 . 3 4 Swap 4 | . 1 . 3 . Drop 10 | . 10 . . . Fire 95 | . 15 . 68 12 Melee . | . . . . . Ram . | . . . . . Kick . | . . . . . Crush 5 | . 5 . . . Escape Stasis 48 | . . . . 48 Rewire . | . . . . . Trap . | . . . . . Miscellaneous . | . . . . . Route ------- -11/Scrapyard -10/Materials (discovered 4 exits: *Mat x3 / [*Min]) -9/Materials (discovered 2 exits: [*Min] / *Sto) -9/Storage -9/Garrison (discovered 1 exit: *Mat) History --------- Turn | Location | Event 28 | -11/Scrapyard | Discovered new exit (range 16) 87 | -11/Scrapyard | Entered Materials 312 | -10/Materials | Build established: Mutant 447 | -10/Materials | Discovered new exit (range 16) 605 | -10/Materials | Discovered new exit (range 4) 648 | -10/Materials | Discovered new exit (range 14) 679 | -10/Materials | Discovered new exit (range 12) 800 | -10/Materials | Entered another Materials area 800 | -9/Materials | Evolved 2 slots: Propulsion x1, Utility x1 946 | -9/Materials | Discovered new exit (range 13) 967 | -9/Materials | Discovered new exit (range 13) 968 | -9/Materials | Identified exit to Storage 970 | -9/Materials | Entered Storage 1086 | -9/Storage | Assisted by bots powering up and referring to "LRC-V3" 1384 | -9/Storage | Build established: Commander-Mutant 1517 | -9/Storage | Identified exit to Garrison 1517 | -9/Storage | Entered Garrison 1520 | -9/Garrison | Triggered checkpoint 1596 | -9/Garrison | Triggered checkpoint 1654 | -9/Garrison | Lost 3 parts (1n2w) 1664 | -9/Garrison | Triggered checkpoint 1707 | -9/Garrison | Build established: Mutant 1724 | -9/Garrison | Triggered checkpoint 1729 | -9/Garrison | Discovered new exit (range 10) 1732 | -9/Garrison | Identified exit to Materials 1732 | -9/Garrison | Attempted to access garrison exit controls, blocked by remote lockdown 1864 | -9/Garrison | Triggered checkpoint 1866 | -9/Garrison | Core integrity fell below 50% 1874 | -9/Garrison | Core integrity fell below 20% 1884 | -9/Garrison | Triggered checkpoint 1884 | -9/Garrison | Destroyed by G-34 Mercenary with Small Laser Last Messages --------------- 01597_ Field strength at 25. 01598_ Field strength at 20. 01599_ Field strength at 15. 01600_ Field strength at 10. 01601_ Field strength at 5. 01602_ Stasis field depleted. 01618_ Beam Rifle destroyed. 01622_ EM Pulse Gun destroyed. 01623_ Flight Unit destroyed. 01625_ Destroyed Sml. Laser. 01634_ G-34 Mercenary destroyed. 01638_ Acquired 15 matter. 01664_ Beams of light sweep through the air. An alarm sounds. 01729_ EXIT=FOUND 01732_ EXIT=IDENTIFIED: MATERIALS 01732_ Attempting to access garrison exit controls... 01732_ Remote lockdown engaged. 01837_ Lgt. Ion Engine destroyed. 01842_ Flight Unit destroyed. 01864_ Beams of light sweep through the air. An alarm sounds. Map ----- +----------------------------------------------------+ | #??????# #???????????????????????????????????? | | #??????# #???????????????????????????????????? | | ##""""## #???????????????????????????????????? | | #???????????????????????????????????? | | #???????????????????????????????????? | | #???????????????????????????????????? | | ## ## #???????????????????????????????????? | | ## ## ###?????????????????????????????????? | | #?????????????????????????????????? | | #?????????????????????????????????? | | #?????????????????????????????????? | | #?????????????????????????????????? | | ## ## ###?????????????????????????????????? | | ?# ## ############????????????????????????? | | #????????????????????????? | | #????????????????????????? | | #????????????????????????? | | ##""""##++######### #????????????????????????? | | ????????????????????# #????????????????????????? | | ????????????????????# #????????????????????????? | | ????????????????????# #????????????????????????? | | ????????????????????# g ######?????####??????????? | | ????????????????????# l ## #????""""#??????????? | | ????????????????????# g## ##### ###?????????? | | ????????????????????# g #?????????? | | ????????????????????# g@ l #?????????? | | ????????????????????# ################?????????? | | ????????????????????# #????????????????????????? | | ????????????????????# #????????????????????????? | | ????????????????????# #????????????????????????? | | ????????????????????# #????????????????????????? | | ????????????????????# #????????????????????????? | | ????????????????????# ?????????????????????????? | | ????????????????????# ?????????????????????????? | | ????????????????????# ?????????????????????????? | | ????????????????????# ?????????????????????????? | | ????????????????????# ?????????????????????????? | | ????????????????????# ?????????????????????????? | | ????????????????????# ?????????????????????????? | | ?????????????????????????????????????????????????? | | ?????????????????????????????????????????????????? | | ?????????????????????????????????????????????????? | | ?????????????????????????????????????????????????? | | ?????????????????????????????????????????????????? | | ?????????????????????????????????????????????????? | | ?????????????????????????????????????????????????? | | ?????????????????????????????????????????????????? | | ?????????????????????????????????????????????????? | | ?????????????????????????????????????????????????? | | ?????????????????????????????????????????????????? | +----------------------------------------------------+ Best States ------------- Heat Dissipation 38 Energy Generation 10 Energy Capacity 250 Matter Stores 300 Matter Capacity 300 Sight Range 16 Terrain Scan Density 10 ECM Strength 1 Evasion (%) 63 Recoil Reduction 2 Item Schematics ----------------- None Robot Schematics ------------------ None Fabricated ------------ Nothing Alien Tech Used ----------------- None Achievements -------------- None Challenges ------------ None Game ------ Seed WardroneTerrainExpander Manual? 0 Play Time 00:36:48 Cumulative 31.8 hours Start 2021.03.20 @ 11:41:39 End 2021.03.20 @ 12:25:12 Sessions 1 Manual Loads 0 Difficulty Rogue Special Mode None Game No. 20 Rogue 20 Adventurer 0 Explorer 0 Win Type - Total 0 Types 0/0/0/0/0/0/0/0/0 Lore% 27 Gallery% 31 Achievement% 31 Wizard Run 0 Options --------- ASCII 1 Keyboard 1 Movement Vi Keybinds 0 Fullscreen 2 Font 18/Smallcaps Map View 76x50 Tactical HUD 1 Map Filters NONE Filters NONE Steam 1 RUN: 90c48512-4140-47c3-a735-53a79496fbb3